bitfinex-derivatives/quotes_SOLF0:USTF0_20241024
["timestamp","ask_amount","ask_price","bid_price","bid_amount"]
[1729760767668,6.0,171.36,171.31,2.9207]
[1729760767870,17.95702085,171.4,171.31,2.9207]
[1729760768071,6.0,171.39,171.34,2.9202]
[1729760768277,6.0,171.4,171.28,1.2934]
[1729760768479,6.0,171.4,171.28,2.39291]
[1729760768679,6.0,171.4,171.29,6.0]
[1729760768980,6.0,171.4,171.35,2.92]
[1729760769176,63.08,171.5,171.29,25.05653085]
[1729760769383,6.0,171.42,171.29,25.05653085]
[1729760770176,6.0,171.42,171.29,7.09951]
[1729760770677,6.0,171.42,171.38,2.9196]
[1729760771071,6.0,171.42,171.29,7.09951]
[1729760771271,6.0,171.42,171.29,1.09951]
[1729760771477,17.95702085,171.37,171.27,3.51385]
[1729760771664,6.0,171.36,171.27,2.4144]
[1729760771867,6.0,171.36,171.3,2.9209]
[1729760772275,17.21890566,171.36,171.3,2.9209]
[1729760772473,17.21890566,171.36,171.3,2.921]
[1729760772667,17.21890566,171.36,171.27,2.4144]
[1729760773570,17.21890566,171.36,171.29,2.921]
[1729760773886,17.21890566,171.36,171.27,2.4144]
[1729760774072,17.21890566,171.36,171.27,3.58173]
[1729760774274,6.0,171.36,171.27,3.58173]
[1729760774873,17.94562919,171.32,171.17,1.16733]
[1729760775073,17.94562919,171.32,171.17,2.5173]
[1729760775074,5.72,171.31,171.17,2.5173]
[1729760775273,20.83227504,171.32,171.21,2.9225]
[1729760775474,20.83227504,171.32,171.17,2.5173]
[1729760775677,5.72,171.31,171.17,3.68463]
[1729760775975,5.72,171.3,171.17,3.68463]
[1729760776182,5.72,171.29,171.17,3.68463]
[1729760776374,5.72,171.29,171.25,2.9217]
[1729760776574,5.72,171.28,171.18,17.94562919]
[1729760776775,17.94562919,171.32,171.18,17.94562919]
[1729760776971,17.94562919,171.32,171.26,2.9215]
[1729760776972,5.72,171.31,171.26,2.9215]
[1729760777175,17.94562919,171.32,171.26,2.9215]
[1729760777377,5.72,171.31,171.26,2.9215]
[1729760777780,5.72,171.31,171.24,2.9219]
[1729760778183,5.72,171.31,171.21,2.9225]
[1729760778377,17.94562919,171.29,171.17,3.68463]
[1729760778782,17.94562919,171.29,171.23,2.9221]
[1729760779179,17.94562919,171.29,171.17,3.68463]
[1729760780283,17.94562919,171.29,171.24,2.9219]
[1729760780483,5.72,171.28,171.17,3.68463]
[1729760780692,17.94562919,171.32,171.17,3.68463]
[1729760781083,5.72,171.31,171.18,1.07392509]
[1729760781289,17.94562919,171.32,171.18,1.07392509]
[1729760781290,17.94562919,171.32,171.19,5.72]
[1729760781482,5.72,171.31,171.19,5.72]
[1729760781884,5.72,171.31,171.19,6.88733]
[1729760783292,63.08,171.39,171.19,24.83295919]
[1729760783489,17.94562919,171.35,171.29,2.921]
[1729760783683,17.94562919,171.35,171.21,5.72]
[1729760783884,5.72,171.34,171.21,5.72]
[1729760784391,17.94562919,171.31,171.21,5.72]
[1729760785187,17.94562919,171.31,171.21,6.88733]
[1729760785393,17.94562919,171.31,171.21,5.72]
[1729760786099,5.72,171.32,171.21,6.88733]
[1729760786286,17.94562919,171.35,171.21,6.88733]
[1729760786482,5.72,171.34,171.21,6.88733]
[1729760786990,5.72,171.34,171.3,2.921]
[1729760787287,5.72,171.35,171.21,6.88733]
[1729760787689,23.66562919,171.36,171.21,6.88733]
[1729760788288,23.66562919,171.36,171.22,1.07364522]
[1729760788491,23.66562919,171.36,171.21,6.88733]
[1729760788797,23.66562919,171.36,171.32,2.9205]
[1729760788996,23.66562919,171.36,171.21,6.88733]
[1729760789205,17.94562919,171.36,171.23,1.1916]
[1729760789404,5.72,171.39,171.25,17.94562919]
[1729760789700,5.72,171.4,171.26,5.72]
[1729760789994,5.72,171.4,171.26,6.88733]
[1729760790194,5.72,171.4,171.35,2.92]
[1729760790494,5.72,171.4,171.33,1.16733]
[1729760791382,17.94562919,171.54,171.33,1.16733]
[1729760791383,17.94562919,171.48,171.34,1.1727]
[1729760791587,17.94562919,171.48,171.34,20.40362919]
[1729760791783,23.66562919,171.51,171.39,2.9193]
[1729760791987,23.66562919,171.51,171.39,5.72]
[1729760792197,17.94562919,171.51,171.39,6.88733]
[1729760792393,17.94562919,171.51,171.43,2.9187]
[1729760792994,17.94562919,171.51,171.44,2.9185]
[1729760793183,17.94562919,171.51,171.42,1.16733]
[1729760793691,17.94562919,171.51,171.46,2.9182]
[1729760793896,17.94562919,171.51,171.42,1.16733]
[1729760794093,5.72,171.52,171.43,3.6805]
[1729760794290,5.72,171.53,171.43,3.6805]
[1729760794487,5.72,171.54,171.43,3.6805]
[1729760794690,5.72,171.54,171.49,2.9176]
[1729760794892,5.72,171.54,171.43,4.84783]
[1729760795592,5.72,171.54,171.5,2.9176]
[1729760796888,5.72,171.54,171.46,1.16733]
[1729760797598,5.72,171.54,171.5,2.9175]
[1729760797993,5.72,171.54,171.47,1.16733]
[1729760798205,5.72,171.54,171.51,2.9174]
[1729760798596,5.72,171.54,171.5,2.9176]
[1729760799486,207.44898321,171.58,171.48,1.16733]
[1729760799687,5.72,171.57,171.48,1.16733]
[1729760800097,17.94562919,171.61,171.54,2.9168]
[1729760800299,5.72,171.6,171.48,1.16733]
[1729760801993,5.72,171.6,171.47,1.16733]
[1729760802500,5.72,171.6,171.5,2.9176]
[1729760803100,5.72,171.6,171.47,1.16733]
[1729760803299,5.72,171.6,171.5,2.9176]
[1729760803503,5.72,171.6,171.46,1.16733]
[1729760803896,5.72,171.6,171.5,2.9174]
[1729760804094,5.72,171.6,171.46,1.16733]
[1729760805402,5.72,171.6,171.53,2.9169]
[1729760805600,5.72,171.6,171.46,1.16733]
[1729760806103,5.72,171.6,171.54,2.9169]
[1729760809095,5.54,171.63,171.54,19.11295919]
[1729760809295,17.94562919,171.68,171.54,19.11295919]
[1729760809501,5.54,171.67,171.54,19.11295919]
[1729760810402,17.94562919,171.71,171.57,17.94562919]
[1729760810707,17.94562919,171.74,171.57,19.11295919]
[1729760810895,5.54,171.7,171.57,19.11295919]
[1729760811300,5.54,171.69,171.57,19.11295919]
[1729760811599,5.54,171.69,171.6,2.9158]
[1729760813101,23.48562919,171.69,171.6,2.9158]
[1729760814008,23.48562919,171.69,171.56,1.09967]
[1729760814402,23.48562919,171.69,171.59,2.9159]
[1729760814603,23.48562919,171.69,171.54,1.1657]
[1729760815307,23.48562919,171.69,171.54,1.09971]
[1729760815512,23.48562919,171.69,171.53,1.16597]
[1729760815904,23.48562919,171.69,171.57,2.9163]
[1729760816300,23.48562919,171.69,171.53,1.16597]
[1729760816505,23.48562919,171.69,171.53,19.04533919]
[1729760817109,17.94562919,171.71,171.56,17.94562919]
[1729760817410,17.94562919,171.71,171.56,19.04533919]
[1729760817411,5.54,171.7,171.56,19.04533919]
[1729760817907,5.54,171.7,171.6,2.9159]
[1729760818204,5.54,171.7,171.56,19.04533919]
[1729760819003,5.54,171.7,171.6,2.9159]
[1729760819204,5.54,171.7,171.5,1.10028]
[1729760819205,17.94562919,171.62,171.5,1.10028]
[1729760819513,5.54,171.61,171.47,2.5089]
[1729760819714,5.54,171.61,171.51,2.9173]
[1729760819903,5.54,171.61,171.47,3.67521]
[1729760820107,17.94562919,171.59,171.47,3.67521]
[1729760820310,17.94562919,171.59,171.49,2.9178]
[1729760820910,17.94562919,171.59,171.47,2.9181]
[1729760821211,17.94562919,171.59,171.45,1.16631]
[1729760821404,17.94562919,171.56,171.45,2.9184]
[1729760821710,5.54,171.55,171.45,2.9184]
[1729760821910,5.54,171.55,171.46,2.9182]
[1729760822112,17.94562919,171.59,171.42,1.16631]
[1729760822312,5.54,171.58,171.42,1.16631]
[1729760822513,5.54,171.58,171.5,2.9176]
[1729760824006,5.54,171.58,171.52,2.9172]
[1729760824206,5.54,171.58,171.46,1.09967]
[1729760824612,5.54,171.58,171.5,2.9174]
[1729760825310,5.54,171.58,171.47,1.09967]
[1729760825709,5.54,171.59,171.48,5.54]
[1729760826011,5.54,171.62,171.5,17.94562919]
[1729760826613,5.54,171.62,171.5,19.04529919]
[1729760826808,5.54,171.62,171.53,17.94562919]
[1729760827116,5.54,171.62,171.54,2.4366]
[1729760827317,5.54,171.62,171.54,7.9766]
[1729760827518,5.54,171.66,171.55,1.2239]
[1729760827815,5.54,171.66,171.61,2.9157]
[1729760828115,5.54,171.66,171.62,2.9154]
[1729760828418,5.54,171.66,171.58,1.09967]
[1729760828808,5.54,171.66,171.64,2.9152]
[1729760829005,5.54,171.69,171.58,1.09967]
[1729760829409,5.54,171.69,171.66,2.9148]
[1729760830009,5.54,171.69,171.65,2.9149]
[1729760830216,5.54,171.69,171.63,1.09967]
[1729760830217,5.54,171.69,171.59,5.54]
[1729760830408,5.54,171.69,171.56,17.94562919]
[1729760830611,5.54,171.69,171.55,1.2239]
[1729760830612,17.94562919,171.68,171.62,1.09993]
[1729760830814,17.94562919,171.68,171.6,2.9158]
[1729760831616,17.94562919,171.68,171.57,1.09993]
[1729760833014,5.54,171.69,171.6,2.9157]
[1729760833221,63.0,171.73,171.57,1.09993]
[1729760833419,23.48562919,171.72,171.57,1.09993]
[1729760834714,17.94562919,171.83,171.68,2.9144]
[1729760834715,5.54,171.74,171.68,2.9144]
[1729760835520,5.54,171.78,171.64,17.94562919]
[1729760836206,5.54,171.78,171.64,19.04555919]
[1729760836610,17.94562919,171.77,171.64,1.09993]
[1729760836811,17.94562919,171.77,171.63,3.6303]
[1729760837314,5.54,171.78,171.64,17.94562919]
[1729760837508,17.94562919,171.77,171.63,4.73026]
[1729760837715,17.94562919,171.74,171.63,3.54156]
[1729760837911,5.54,171.73,171.63,2.4416]
[1729760838212,5.54,171.73,171.65,2.9149]
[1729760838409,5.54,171.73,171.6,6.7055]
[1729760838612,5.54,171.73,171.6,6.6398]
[1729760838809,5.54,171.73,171.67,2.9146]
[1729760839005,5.54,171.73,171.6,6.6398]
[1729760839417,5.54,171.73,171.61,17.94562919]
[1729760839811,5.54,171.73,171.69,2.9142]
[1729760840011,80.92562919,171.83,171.61,1.0998]
[1729760840012,62.98,171.83,171.61,1.0998]
[1729760840315,62.98,171.83,171.64,17.94562919]
[1729760840316,17.94562919,171.8,171.64,17.94562919]
[1729760840516,17.94562919,171.8,171.65,6.7456]
[1729760840714,17.94562919,171.8,171.73,2.9137]
[1729760841020,5.54,171.79,171.69,1.0998]
[1729760841315,5.54,171.79,171.72,2.9138]
[1729760841509,17.94562919,171.8,171.72,2.9138]
[1729760841717,5.54,171.78,171.76,2.9131]
[1729760842015,5.54,171.78,171.7,1.0998]
[1729760842324,5.54,171.78,171.73,2.9135]
[1729760842619,5.54,171.78,171.7,1.0998]
[1729760842812,5.54,171.78,171.72,2.9137]
[1729760843310,17.94562919,171.83,171.7,24.58542919]
[1729760843507,17.94562919,171.83,171.76,2.9131]
[1729760843907,5.54,171.84,171.79,2.9127]
[1729760844119,5.54,171.84,171.72,1.0998]
[1729760844608,2.9121,171.83,171.77,2.9129]
[1729760845118,5.54,171.84,171.72,1.0998]
[1729760845419,5.54,171.84,171.7,23.48562919]
[1729760845718,5.54,171.84,171.7,24.65074919]
[1729760845922,17.94562919,171.83,171.7,1.16512]
[1729760846419,2.9125,171.81,171.75,2.9133]
[1729760846626,17.94562919,171.83,171.71,1.16512]
[1729760846814,17.94562919,171.83,171.69,24.65074919]
[1729760847118,17.94562919,171.83,171.77,2.9129]
[1729760847323,5.54,171.83,171.69,24.65074919]
[1729760847520,5.54,171.83,171.78,2.9127]
[1729760847911,5.54,171.83,171.72,17.94562919]
[1729760848125,5.54,171.83,171.79,2.9126]
[1729760848322,5.54,171.83,171.73,1.2448]
[1729760848323,5.54,171.83,171.74,5.54]
[1729760848725,5.54,171.83,171.81,2.9123]
[1729760848918,20.85722919,171.86,171.81,2.9123]
[1729760848919,5.54,171.85,171.81,2.9123]
[1729760850527,2.9116,171.86,171.81,2.9122]
[1729760850728,5.54,171.87,171.79,1.16512]
[1729760851028,5.54,171.87,171.75,17.94562919]
[1729760851325,5.54,171.87,171.75,19.11074919]
[1729760851524,5.54,171.87,171.76,2.4963]
[1729760851822,5.54,171.87,171.76,3.66142]
[1729760852224,5.54,171.87,171.83,2.912]
[1729760852824,5.54,171.87,171.76,1.16512]
[1729760853226,5.54,171.87,171.72,1.16512]
[1729760853227,17.94562919,171.82,171.72,1.16512]
[1729760853431,5.54,171.81,171.67,23.48562919]
[1729760853828,2.913,171.77,171.71,2.914]
[1729760854027,5.54,171.81,171.71,2.914]
[1729760854228,5.54,171.81,171.67,1.16516]
[1729760854427,17.94562919,171.8,171.67,2.9147]
[1729760854630,17.94562919,171.76,171.65,2.4963]
[1729760854931,5.54,171.75,171.65,2.4963]
[1729760855121,2.9141,171.71,171.65,2.915]
[1729760855925,5.54,171.75,171.63,1.0998]
[1729760856627,2.914,171.72,171.63,1.0998]
[1729760857230,2.914,171.72,171.61,23.48562919]
[1729760857231,5.54,171.75,171.61,5.54]
[1729760857532,5.54,171.75,171.59,4.78353]
[1729760857733,2.9143,171.7,171.63,2.9153]
[1729760857933,2.9143,171.7,171.59,4.7178]
[1729760857934,5.54,171.69,171.59,4.7178]
[1729760859231,5.54,171.69,171.68,2.9145]
[1729760859434,5.54,171.72,171.59,4.7178]
[1729760859836,5.54,171.72,171.61,17.94562919]
[1729760860337,5.54,171.72,171.67,2.9146]
[1729760860534,17.94562919,171.79,171.63,5.54]
[1729760860730,5.54,171.78,171.65,17.94562919]
[1729760860927,5.54,171.78,171.7,2.9141]
[1729760860928,2.9134,171.75,171.7,2.9141]
[1729760862439,2.9132,171.76,171.67,1.09977]
[1729760863341,2.9132,171.76,171.7,2.9141]
[1729760863734,2.9132,171.76,171.67,1.09977]
[1729760863934,8.3732,171.76,171.7,2.9141]
[1729760867747,2.9134,171.75,171.7,2.9141]
[1729760869544,2.9134,171.75,171.67,1.09977]
[1729760869545,5.46,171.76,171.67,1.09977]
[1729760869747,8.3733,171.76,171.67,1.09977]
[1729760870252,5.46,171.76,171.72,2.9138]
[1729760870649,62.92,171.8,171.68,27.19662919]
[1729760870853,5.46,171.81,171.7,17.94562919]
[1729760871054,5.46,171.82,171.7,17.94562919]
[1729760871459,5.46,171.82,171.7,19.04539919]
[1729760871958,2.9124,171.81,171.76,2.9132]
[1729760872660,8.3723,171.82,171.77,2.913]
[1729760872854,5.46,171.82,171.77,2.913]
[1729760873059,5.46,171.82,171.74,1.09977]
[1729760873261,5.46,171.82,171.79,2.9126]
[1729760873458,5.46,171.82,171.7,17.94562919]
[1729760873657,5.46,171.82,171.7,19.04539919]
[1729760873848,2.9117,171.85,171.8,2.9124]
[1729760874052,8.3717,171.85,171.8,2.9124]
[1729760874949,5.46,171.85,171.77,1.09977]
[1729760875156,8.3717,171.85,171.8,2.9125]
[1729760876260,2.9117,171.85,171.8,2.9125]
[1729760878259,5.46,171.86,171.77,1.09977]
[1729760878463,8.3715,171.86,171.81,2.9122]
[1729760879257,2.9119,171.84,171.79,2.9127]
[1729760879665,5.46,171.86,171.76,3.7487]
[1729760879861,5.46,171.89,171.84,2.9117]
[1729760880465,5.46,171.89,171.8,17.94562919]
[1729760880666,5.46,171.89,171.78,17.94562919]
[1729760880866,2.9116,171.86,171.77,1.10022]
[1729760881059,5.46,171.89,171.76,4.91304]
[1729760881261,5.46,171.89,171.81,2.9123]
[1729760881455,5.46,171.89,171.76,4.8485]
[1729760881963,2.9112,171.88,171.76,4.8485]
[1729760882368,2.9112,171.88,171.82,2.912]
[1729760883269,2.9104,171.93,171.88,2.9111]
[1729760883464,2.9104,171.93,171.82,11.18434846]
[1729760883465,5.46,171.93,171.82,11.18434846]
[1729760883866,5.46,171.93,171.85,2.9115]
[1729760883867,2.9109,171.9,171.85,2.9115]
[1729760884064,5.46,171.93,171.82,12.28414846]
[1729760884466,2.9109,171.9,171.85,2.9116]
[1729760884666,5.46,171.93,171.82,12.28414846]
[1729760885267,5.46,171.93,171.84,11.18434846]
[1729760885668,8.3703,171.93,171.88,2.9111]
[1729760886271,8.3703,171.93,171.89,2.911]
[1729760886272,5.46,171.93,171.89,2.911]
[1729760887174,5.46,171.93,171.87,11.18434846]
[1729760887476,8.3703,171.93,171.88,2.911]
[1729760887776,5.46,171.93,171.85,2.5232]
[1729760887980,2.9107,171.91,171.86,2.9114]
[1729760888471,5.46,171.93,171.82,11.18434846]
[1729760889179,8.3703,171.93,171.84,11.18434846]
[1729760889563,5.46,171.93,171.84,11.18434846]
[1729760889768,5.46,171.93,171.89,2.911]
[1729760890770,5.46,171.95,171.9,2.9108]
[1729760891264,17.52,172.13,171.89,11.18434846]
[1729760891464,5.46,172.0,171.89,11.18434846]
[1729760891771,2.9094,171.99,171.89,11.18434846]
[1729760892376,5.46,172.0,171.85,20.33309231]
[1729760892571,5.46,171.99,171.88,17.89219231]
[1729760892877,8.3695,171.98,171.88,17.89219231]
[1729760893577,8.3695,171.98,171.88,19.05619231]
[1729760893779,5.46,171.98,171.88,19.05619231]
[1729760893970,8.3695,171.98,171.88,19.05619231]
[1729760894675,2.9091,172.0,171.92,17.89219231]
[1729760894873,2.88629602,172.18,171.98,17.89219231]
[1729760895078,5.8085,172.29,171.93,4.78660484]
[1729760895079,6.02,172.21,172.08,2.9076]
[1729760895274,6.93898068,172.2,172.04,19.05619231]
[1729760895575,6.02,172.2,172.08,17.89219231]
[1729760895771,2.9061,172.18,172.08,17.89219231]
[1729760895976,2.91987139,172.17,172.08,17.89219231]
[1729760896173,17.89219231,172.22,172.11,2.9071]
[1729760896174,6.02,172.19,172.11,2.9071]
[1729760896475,2.9063,172.17,172.08,17.89219231]
[1729760896677,2.9063,172.17,172.09,2.9076]
[1729760897071,6.02,172.19,172.08,17.89219231]
[1729760897275,6.02,172.19,172.12,2.907]
[1729760897470,6.02,172.19,172.08,17.89219231]
[1729760899275,6.02,172.19,172.13,2.9068]
[1729760899470,6.02,172.19,172.05,21.60949231]
[1729760899671,17.89219231,172.18,172.05,21.60949231]
[1729760899871,2.93714666,172.17,172.05,21.60949231]
[1729760900277,17.89219231,172.18,172.05,21.60949231]
[1729760900883,2.9711643,172.17,172.05,21.60949231]
[1729760901383,17.89219231,172.18,172.11,2.9075]
[1729760901578,2.93848605,172.17,172.11,2.9075]
[1729760901776,5.84508605,172.17,172.05,22.77349231]
[1729760902384,5.84508605,172.17,172.09,2.9077]
[1729760902573,5.84508605,172.17,172.05,22.77349231]
[1729760902773,2.93848605,172.17,172.05,22.77349231]
[1729760902977,2.9067,172.16,172.05,22.77349231]
[1729760903176,2.9067,172.16,172.05,21.60949231]
[1729760903376,8.9261,172.2,172.13,2.9071]
[1729760903880,6.02,172.19,172.13,2.9071]
[1729760904273,6.02,172.18,172.13,2.9071]
[1729760905277,6.02,172.18,172.09,2.9078]
[1729760905477,17.89219231,172.22,172.06,1.164]
[1729760905681,6.02,172.21,172.06,1.164]
[1729760906274,2.9062,172.2,172.13,2.9072]
[1729760906578,6.02,172.21,172.13,2.9072]
[1729760907278,2.9061,172.2,172.14,2.907]
[1729760907483,6.02,172.21,172.06,6.02]
[1729760908082,6.02,172.21,172.06,7.184]
[1729760908687,2.9063,172.19,172.13,2.9071]
[1729760908881,6.02,172.21,172.07,17.89219231]
[1729760909088,2.9059,172.21,172.16,2.9066]
[1729760909391,80.73219231,172.23,172.07,19.05619231]
[1729760909392,6.02,172.2,172.07,19.05619231]
[1729760909781,17.89219231,172.28,172.11,17.89219231]
[1729760910081,17.89219231,172.28,172.12,6.02]
[1729760910278,17.89219231,172.25,172.08,17.89219231]
[1729760910483,6.02,172.24,172.09,6.02]
[1729760910685,2.9059,172.21,172.13,2.9072]
[1729760910888,2.9059,172.21,172.09,6.02]
[1729760911085,2.85789169,172.23,172.09,1.164]
[1729760911387,2.9059,172.21,172.1,6.02]
[1729760911789,20.79799231,172.22,172.14,2.907]
[1729760912184,17.89219231,172.22,172.14,2.907]
[1729760912689,2.906,172.21,172.14,2.907]
[1729760913988,17.89219231,172.22,172.1,6.02]
[1729760914290,2.9063,172.19,172.1,6.02]
[1729760914689,2.9063,172.19,172.12,2.9072]
[1729760914889,20.79799231,172.22,172.1,6.02]
[1729760915188,6.02,172.24,172.1,6.02]
[1729760915388,6.02,172.24,172.15,2.9067]
[1729760915389,2.9058,172.22,172.15,2.9067]
[1729760915587,6.02,172.24,172.1,7.184]
[1729760915788,17.89219231,172.46,172.19,2.9061]
[1729760915789,2.92733592,172.27,172.19,2.9061]
[1729760915989,17.89219231,172.29,172.15,6.02]
[1729760916190,6.02,172.28,172.15,6.02]
[1729760916388,11.16145173,172.26,172.18,2.9063]
[1729760916589,2.9056,172.23,172.15,18.34545173]
[1729760916891,11.16145173,172.24,172.15,2.9069]
[1729760917291,11.16145173,172.24,172.14,3.6161]
[1729760917292,2.906,172.21,172.14,3.6161]
[1729760917489,2.906,172.21,172.14,6.5231]
[1729760918100,2.9057,172.22,172.16,2.9065]
[1729760918296,6.02,172.23,172.14,3.6161]
[1729760918797,8.9256,172.23,172.17,2.9064]
[1729760920794,2.9061,172.2,172.14,3.6161]
[1729760920997,23.88301058,172.23,172.14,3.6161]
[1729760921792,2.906,172.21,172.14,3.6161]
[1729760921991,23.88301058,172.23,172.14,3.6161]
[1729760922795,2.906,172.2,172.14,6.5231]
[1729760922994,23.88301058,172.23,172.14,3.6161]
[1729760923198,20.76851058,172.23,172.17,2.9065]
[1729760923396,20.76851058,172.23,172.14,3.6161]
[1729760923397,6.02,172.23,172.14,3.6161]
[1729760923795,6.02,172.23,172.17,2.9064]
[1729760924302,2.9053,172.25,172.14,4.7159]
[1729760924496,6.02,172.24,172.14,10.5759]
[1729760924700,2.9053,172.25,172.14,10.5759]
[1729760925102,104.53397551,172.86,172.16,17.86301058]
[1729760925103,462.06477878,172.44,172.16,17.86301058]
[1729760925303,17.86301058,172.34,172.16,17.86301058]
[1729760925905,2.9045,172.29,172.17,5.86]
[1729760926311,2.9045,172.29,172.17,6.9598]
[1729760926814,2.9045,172.29,172.23,2.9055]
[1729760927511,5.86,172.34,172.19,5.86]
[1729760927696,23.72301058,172.34,172.19,5.86]
[1729760927899,2.905,172.27,172.2,2.906]
[1729760928096,5.86,172.29,172.2,2.906]
[1729760928310,5.86,172.29,172.16,23.72301058]
[1729760928506,2.905,172.26,172.2,2.9059]
[1729760929007,17.86301058,172.35,172.19,17.86301058]
[1729760929605,17.86301058,172.35,172.19,18.96288058]
[1729760930311,2.9044,172.3,172.24,2.9053]
[1729760930512,17.86301058,172.35,172.25,1.2554]
[1729760931211,2.9043,172.31,172.25,1.2554]
[1729760931413,8.7643,172.31,172.25,1.2554]
[1729760932404,62.76,172.46,172.25,1.2554]
[1729760932610,17.86301058,172.38,172.25,1.2554]
[1729760932808,2.94871195,172.37,172.25,1.2554]
[1729760933112,5.86,172.4,172.25,1.2554]
[1729760933414,26.61883865,172.4,172.25,1.2554]
[1729760933710,2.9034,172.36,172.28,2.9046]
[1729760933910,5.86,172.35,172.28,2.9046]
[1729760934112,20.75883865,172.4,172.28,2.9046]
[1729760934315,5.86,172.39,172.28,2.9046]
[1729760935306,2.9037,172.34,172.28,2.9046]
[1729760935511,8.7637,172.34,172.28,2.9046]
[1729760935709,5.86,172.34,172.26,2.4888]
[1729760935913,2.9042,172.31,172.26,1.2651]
[1729760936112,5.86,172.34,172.26,1.2651]
[1729760936914,2.9043,172.31,172.26,1.2651]
[1729760937109,5.86,172.39,172.26,1.2651]
[1729760937412,2.9044,172.3,172.26,1.2651]
[1729760937610,5.86,172.33,172.26,1.2651]
[1729760938106,2.9043,172.31,172.26,1.2651]
[1729760938501,5.86,172.33,172.21,1.0999]
[1729760938701,5.86,172.33,172.17,1.09993]
[1729760938702,23.72301058,172.33,172.17,1.09993]
[1729760938903,23.72301058,172.33,172.16,17.86301058]
[1729760939112,2.9047,172.28,172.21,2.9057]
[1729760939315,5.86,172.28,172.22,1.2217]
[1729760939701,2.9049,172.27,172.22,4.1274]
[1729760940215,5.86,172.28,172.22,1.2217]
[1729760940407,5.86,172.28,172.23,1.2723]
[1729760940607,5.86,172.31,172.24,1.2385]
[1729760940810,2.9029,172.39,172.33,2.9038]
[1729760941010,2.9029,172.39,172.25,23.72301058]
[1729760941011,2.85444219,172.44,172.28,17.86301058]
[1729760941207,2.85444219,172.44,172.28,19.02478058]
[1729760941208,6.18,172.44,172.28,19.02478058]
[1729760941510,2.9027,172.4,172.28,19.02478058]
[1729760942212,2.9029,172.39,172.28,19.02478058]
[1729760943312,2.9029,172.39,172.33,2.9037]
[1729760943508,2.9029,172.39,172.34,1.1738]
[1729760944015,2.9025,172.41,172.35,2.9034]
[1729760944222,17.86301058,172.46,172.34,1.1738]
[1729760944514,18.82561058,172.52,172.35,6.18]
[1729760944818,6.18,172.51,172.35,1.16177]
[1729760945010,7.4332,172.51,172.36,6.18]
[1729760945208,7.4332,172.51,172.39,2.9028]
[1729760945712,17.86301058,172.49,172.37,2.903]
[1729760946017,24.04301058,172.51,172.35,6.18]
[1729760946218,2.9013,172.48,172.4,2.9025]
[1729760946418,6.18,172.5,172.41,1.168]
[1729760946610,6.18,172.5,172.42,2.4216]
[1729760946810,6.18,172.5,172.42,5.3238]
[1729760946811,2.9013,172.49,172.42,5.3238]
[1729760947016,6.18,172.5,172.42,5.3238]
[1729760947617,2.9012,172.49,172.42,5.3238]
[1729760947817,6.18,172.5,172.42,5.3238]
[1729760948013,6.18,172.49,172.42,5.3238]
[1729760948209,6.18,172.55,172.42,2.4216]
[1729760948522,6.18,172.55,172.45,2.9017]
[1729760948523,2.9008,172.52,172.45,2.9017]
[1729760948816,6.18,172.55,172.42,3.58337]
[1729760948817,6.18,172.55,172.43,17.86301058]
[1729760949011,20.09951058,172.58,172.43,17.86301058]